bitfinex-derivatives/quotes_BTCF0:USTF0_20250710
["timestamp","ask_amount","ask_price","bid_price","bid_amount"]
[1752116671601,0.69656464,111290.0,111280.0,0.200318]
[1752116671803,1.05736464,111290.0,111280.0,0.200318]
[1752116673305,1.04182464,111290.0,111280.0,0.200318]
[1752116677703,1.04182464,111290.0,111280.0,0.21436432]
[1752116678209,1.04182464,111290.0,111280.0,0.200318]
[1752116679800,1.04182464,111290.0,111280.0,0.21436432]
[1752116680210,1.04182464,111290.0,111280.0,0.200318]
[1752116680707,0.68102464,111290.0,111280.0,0.200318]
[1752116680908,1.05736464,111290.0,111280.0,0.200318]
[1752116681410,1.05736464,111290.0,111280.0,0.21436432]
[1752116685518,1.05736464,111290.0,111280.0,0.21436405]
[1752116686213,1.05736464,111290.0,111280.0,0.200318]
[1752116688615,0.9500121,111290.0,111280.0,0.200318]
[1752116689118,1.08413166,111290.0,111280.0,0.1194119]
[1752116691517,0.82028948,111290.0,111280.0,0.57953808]
[1752116691712,1.34540948,111290.0,111280.0,0.84338026]
[1752116691908,1.59371166,111290.0,111280.0,0.72441626]
[1752116692222,1.59371166,111290.0,111280.0,0.90408026]
[1752116692416,1.59371166,111290.0,111280.0,0.91812617]
[1752116692916,1.59113727,111290.0,111280.0,0.91812617]
[1752116693116,1.59113727,111290.0,111280.0,0.65428399]
[1752116693515,1.56701727,111290.0,111280.0,0.65428399]
[1752116696118,1.59113727,111290.0,111280.0,0.65428399]
[1752116696315,1.56697727,111290.0,111280.0,0.64023808]
[1752116696515,1.59109727,111290.0,111280.0,0.64023808]
[1752116696823,1.20617727,111290.0,111280.0,0.64023808]
[1752116697022,1.59147727,111290.0,111280.0,0.64023808]
[1752116697221,0.97787727,111290.0,111280.0,0.64023808]
[1752116697420,1.59147727,111290.0,111280.0,0.64023808]
[1752116698824,1.4840521,111290.0,111280.0,0.64023808]
[1752116699025,1.61817166,111290.0,111280.0,0.3763959]
[1752116699226,1.4840521,111290.0,111280.0,0.64023808]
[1752116699622,1.5915139,111290.0,111280.0,0.64023808]
[1752116700122,1.5915139,111290.0,111280.0,0.3763959]
[1752116700432,1.5915139,111290.0,111280.0,0.64023808]
[1752116703723,1.32767172,111290.0,111280.0,0.64023808]
[1752116704022,1.5915139,111290.0,111280.0,0.64023808]
[1752116704930,1.4840521,111290.0,111280.0,0.64023808]
[1752116705435,1.4840521,111290.0,111280.0,0.654284]
[1752116706533,1.1232521,111290.0,111280.0,0.654284]
[1752116706733,1.4840521,111290.0,111280.0,0.654284]
[1752116707830,1.5166521,111290.0,111280.0,0.654284]
[1752116709531,1.1558521,111290.0,111280.0,0.654284]
[1752116709838,1.5166521,111290.0,111280.0,0.654284]
[1752116710434,1.5166521,111290.0,111280.0,0.39044182]
[1752116710633,1.5166521,111290.0,111280.0,0.654284]
[1752116713130,1.62410909,111290.0,111280.0,0.654284]
[1752116714437,1.36026691,111290.0,111280.0,0.654284]
[1752116714838,1.62410909,111290.0,111280.0,0.654284]
[1752116717738,1.62410909,111290.0,111280.0,0.607264]
[1752116717939,1.65650909,111290.0,111280.0,0.622394]
[1752116718140,1.65650909,111290.0,111280.0,0.607264]
[1752116718541,1.65650909,111290.0,111280.0,0.622394]
[1752116719141,1.5490521,111290.0,111280.0,0.622394]
[1752116721337,1.65651996,111290.0,111280.0,0.622394]
[1752116722048,1.39267778,111290.0,111280.0,0.622394]
[1752116722246,1.65651996,111290.0,111280.0,0.622394]
[1752116722446,1.65651996,111290.0,111280.0,0.62239364]
[1752116724245,1.39267778,111290.0,111280.0,0.62239364]
[1752116724446,1.65651996,111290.0,111280.0,0.62239364]
[1752116724746,1.65651996,111290.0,111280.0,0.35855146]
[1752116724940,1.65651996,111290.0,111280.0,0.62239364]
[1752116726443,1.5490521,111290.0,111280.0,0.17888746]
[1752116726641,1.5245521,111290.0,111280.0,0.1334575]
[1752116726845,1.5492721,111290.0,111280.0,0.1334575]
[1752116727147,1.28542992,111290.0,111280.0,0.1334575]
[1752116727349,1.5492721,111290.0,111280.0,0.1334575]
[1752116727942,1.28542992,111290.0,111280.0,0.1334575]
[1752116728147,1.5492721,111290.0,111280.0,0.1334575]
[1752116729143,1.65673996,111290.0,111280.0,0.1334575]
[1752116729943,1.65673996,111290.0,111280.0,0.39729968]
[1752116730255,1.63201996,111290.0,111280.0,0.39729968]
[1752116730442,1.65673996,111290.0,111280.0,0.39729968]
[1752116732354,1.65673996,111290.0,111280.0,0.1334575]
[1752116735850,1.65673996,111290.0,111280.0,0.39729968]
[1752116736254,1.39289778,111290.0,111280.0,0.39729968]
[1752116736456,1.65673996,111290.0,111280.0,0.39729968]
[1752116737253,1.29593996,111290.0,111280.0,0.39729968]
[1752116737455,1.65673996,111290.0,111280.0,0.39729968]
[1752116739446,1.65673996,111290.0,111280.0,0.1334575]
[1752116739652,1.39289778,111290.0,111280.0,0.1334575]
[1752116739858,1.65673996,111290.0,111280.0,0.1334575]
[1752116741155,1.65673996,111290.0,111280.0,0.39729968]
[1752116741356,1.39289778,111290.0,111280.0,0.39729968]
[1752116741545,1.65673996,111290.0,111280.0,0.39729968]
[1752116743356,1.65673996,111290.0,111280.0,0.41289968]
[1752116744455,1.5492721,111290.0,111280.0,0.41289968]
[1752116745356,1.5492721,111290.0,111280.0,0.39885408]
[1752116746859,1.28542992,111290.0,111280.0,0.38325408]
[1752116747060,1.5492721,111290.0,111280.0,0.38325408]
[1752116749361,1.65670708,111290.0,111280.0,0.38325408]
[1752116749659,1.65670708,111290.0,111280.0,0.39729968]
[1752116750252,1.27118708,111290.0,111280.0,0.39729968]
[1752116750457,1.65670708,111290.0,111280.0,0.39729968]
[1752116751962,1.65670708,111290.0,111280.0,0.1334575]
[1752116752260,1.65670708,111290.0,111280.0,0.39729968]
[1752116753259,1.5492721,111290.0,111280.0,0.39729968]
[1752116753754,1.5492721,111290.0,111280.0,0.1334575]
[1752116754462,1.5492721,111290.0,111280.0,0.39729968]
[1752116755362,1.28542992,111290.0,111280.0,0.39729968]
[1752116755549,1.5492721,111290.0,111280.0,0.39729968]
[1752116758360,1.5492721,111290.0,111280.0,0.40729968]
[1752116758549,1.5492721,111290.0,111280.0,0.39729968]
[1752116758752,1.5492721,111290.0,111280.0,0.40729968]
[1752116759662,1.65670708,111290.0,111280.0,0.40729968]
[1752116759863,1.5492721,111290.0,111280.0,0.40729968]
[1752116760663,1.28542992,111290.0,111280.0,0.40729968]
[1752116760866,1.5492721,111290.0,111280.0,0.40729968]
[1752116761164,1.5492721,111290.0,111280.0,0.1434575]
[1752116761464,1.5492721,111290.0,111280.0,0.40729968]
[1752116764766,0.9356721,111290.0,111280.0,0.40729968]
[1752116765065,1.67283948,111290.0,111280.0,0.40729968]
[1752116772165,1.4089973,111290.0,111280.0,0.40729968]
[1752116772364,1.67283948,111290.0,111280.0,0.1434575]
[1752116772565,1.67283948,111290.0,111280.0,0.40729968]
[1752116774068,1.67283948,111290.0,111280.0,0.39729968]
[1752116774369,1.67283948,111290.0,111280.0,0.40729968]
[1752116775067,1.5654321,111290.0,111280.0,0.40729968]
[1752116775667,1.5654321,111290.0,111280.0,0.1434575]
[1752116776564,1.69955166,111290.0,111280.0,0.1434575]
[1752116777074,1.80695415,111290.0,111280.0,0.1434575]
[1752116777263,1.67283459,111290.0,111280.0,0.1434575]
[1752116778771,1.67283459,111290.0,111280.0,0.1334575]
[1752116778968,1.67283459,111290.0,111280.0,0.1434575]
[1752116779167,1.5654321,111290.0,111280.0,0.1434575]
[1752116780272,1.30158992,111290.0,111280.0,0.1434575]
[1752116780567,1.5654321,111290.0,111280.0,0.1434575]
[1752116781271,1.5654321,111290.0,111280.0,0.0625548]
[1752116781471,1.69955166,111290.0,111280.0,0.0625548]
[1752116781673,1.69955166,111290.0,111280.0,0.32639698]
[1752116784973,1.69955166,111290.0,111280.0,0.31639698]
[1752116785268,1.69955166,111290.0,111280.0,0.32639698]
[1752116785473,1.69955166,111290.0,111280.0,0.31235137]
[1752116789376,1.69822837,111290.0,111280.0,0.04850919]
[1752116789579,1.69822837,111290.0,111280.0,0.31235137]
[1752116789780,1.56410881,111290.0,111280.0,0.31235137]
[1752116791381,1.69822837,111290.0,111280.0,0.31235137]
[1752116792389,1.67149116,111290.0,111280.0,0.31235137]
[1752116792777,1.67149116,111290.0,111280.0,0.32639698]
[1752116793482,1.67149116,111290.0,111280.0,0.0625548]
[1752116793781,1.67149116,111290.0,111280.0,0.32639698]
[1752116795475,1.31069116,111290.0,111280.0,0.32639698]
[1752116795776,1.67149116,111290.0,111280.0,0.32639698]
[1752116796170,1.67149116,111290.0,111280.0,0.32639694]
[1752116796682,1.67149116,111290.0,111280.0,0.06255476]
[1752116796877,1.67149116,111290.0,111280.0,0.32639694]
[1752116797588,1.56410881,111290.0,111280.0,0.32639694]
[1752116797884,1.69822837,111290.0,111280.0,0.32639694]
[1752116798077,1.43438619,111290.0,111280.0,0.32639694]
[1752116798280,1.69822837,111290.0,111280.0,0.32639694]
[1752116798785,1.69822837,111290.0,111280.0,0.33639694]
[1752116799277,1.43438619,111290.0,111280.0,0.07255476]
[1752116799583,1.69822837,111290.0,111280.0,0.05255476]
[1752116800484,1.56410881,111290.0,111280.0,0.05255476]
[1752116802485,1.56410881,111290.0,111280.0,0.03850919]
[1752116802785,1.56435675,111290.0,111280.0,0.05255498]
[1752116805689,1.69847631,111290.0,111280.0,0.05255498]
[1752116807078,1.94512849,111290.0,111280.0,0.05255498]
[1752116807281,1.81100893,111290.0,111280.0,0.05255498]
[1752116807886,1.54716675,111290.0,111280.0,0.05255498]
[1752116808086,1.81100893,111290.0,111280.0,0.05255498]
[1752116809185,1.91845087,111290.0,111280.0,0.05255498]
[1752116815090,1.65460869,111290.0,111280.0,0.05255498]
[1752116815991,1.91845087,111290.0,111280.0,0.05255498]
[1752116816294,1.65460869,111290.0,111280.0,0.05255498]
[1752116818692,1.54716675,111290.0,111280.0,0.05255498]
[1752116819083,1.36751885,111290.0,111270.0,0.2118799]
[1752116819288,0.59949987,111280.0,111270.0,0.23624586]
[1752116819487,0.66386654,111280.0,111270.0,0.23624586]
[1752116819997,0.66386654,111280.0,111270.0,0.47326596]
[1752116820394,0.66386654,111280.0,111270.0,0.47426596]
[1752116820694,0.66386654,111280.0,111270.0,0.29458586]
[1752116821094,0.66386654,111280.0,111270.0,0.29558586]
[1752116821294,0.66386654,111280.0,111270.0,0.55942804]
[1752116821791,0.66386654,111280.0,111270.0,0.55842804]
[1752116822097,0.66386654,111280.0,111270.0,0.55942804]
[1752116822403,0.66386654,111280.0,111270.0,0.75874604]
[1752116822900,0.62372654,111280.0,111270.0,0.47836386]
[1752116823198,0.66445654,111280.0,111270.0,0.75874604]
[1752116823392,0.66445654,111280.0,111270.0,0.67458396]
[1752116823592,0.66445654,111280.0,111270.0,0.93842614]
[1752116824597,0.68316127,111280.0,111270.0,0.93842614]
[1752116825005,0.68316127,111280.0,111270.0,0.92842614]
[1752116826300,0.68316127,111280.0,111270.0,0.74874604]
[1752116827300,0.68316127,111280.0,111270.0,0.92842614]
[1752116828500,0.68316127,111280.0,111270.0,0.73842614]
[1752116828701,0.68316127,111280.0,111270.0,0.94842614]
[1752116829203,0.57572758,111280.0,111270.0,0.94842614]
[1752116829501,0.57572758,111280.0,111270.0,0.94742614]
[1752116830004,0.57572758,111280.0,111270.0,0.91642614]
[1752116830207,0.57725951,111280.0,111270.0,0.91642614]
[1752116830701,0.31341733,111280.0,111270.0,0.91642614]
[1752116830901,0.57725951,111280.0,111270.0,0.65258396]
[1752116831104,0.57725951,111280.0,111270.0,0.91642614]
[1752116831807,0.6846932,111280.0,111270.0,0.91642614]
[1752116833502,0.6846932,111280.0,111270.0,0.73642614]
[1752116833699,0.6846932,111280.0,111270.0,0.94642614]
[1752116835007,0.6846932,111280.0,111270.0,0.91642614]
[1752116837419,0.6846932,111280.0,111270.0,0.65258396]
[1752116837600,0.6846932,111280.0,111270.0,0.91642614]
[1752116838504,0.6846932,111280.0,111270.0,0.73642614]
[1752116838709,0.6846932,111280.0,111270.0,0.91642614]
[1752116840110,0.6846932,111280.0,111270.0,0.93642614]
[1752116843614,0.6846932,111280.0,111270.0,0.91642614]
[1752116845014,0.6846932,111280.0,111270.0,0.74674604]
[1752116845411,0.6846932,111280.0,111270.0,0.73270018]
[1752116845608,0.6846932,111280.0,111270.0,0.92642616]
[1752116848506,0.6846932,111280.0,111270.0,0.73642616]
[1752116848709,0.6846932,111280.0,111270.0,0.93642616]
[1752116850019,0.6846932,111280.0,111270.0,0.94642616]
[1752116850212,0.6846932,111280.0,111270.0,0.76674606]
[1752116850518,0.6846932,111280.0,111270.0,0.94642616]
[1752116851822,0.6846932,111280.0,111270.0,0.91410616]
[1752116852022,0.97963538,111280.0,111270.0,0.73442606]
[1752116852222,0.97963538,111280.0,111270.0,0.71940606]
[1752116852826,0.97963538,111280.0,111270.0,0.73442606]
[1752116853622,0.97963538,111280.0,111270.0,0.72442606]
[1752116854525,0.97963538,111280.0,111270.0,0.90410616]
[1752116854825,0.97963538,111280.0,111270.0,0.72442606]
[1752116855122,0.97963538,111280.0,111270.0,0.66038018]
[1752116855317,0.97963538,111280.0,111270.0,0.67442606]
[1752116856818,0.97963538,111280.0,111270.0,0.41058388]
[1752116857018,0.95279352,111280.0,111270.0,0.67442606]
[1752116858630,0.68895134,111280.0,111270.0,0.68442606]
[1752116860031,0.68895134,111280.0,111270.0,0.69442606]
[1752116863622,0.68895134,111280.0,111270.0,0.67442606]
[1752116865032,0.68895134,111280.0,111270.0,0.69442606]
[1752116865628,1.31359352,111280.0,111270.0,0.39838388]
[1752116865834,1.31359352,111280.0,111270.0,0.38336388]
[1752116865835,1.31359165,111280.0,111270.0,0.38336388]
[1752116866020,1.23300169,111280.0,111270.0,0.21336388]
[1752116866219,1.34043538,111280.0,111270.0,0.2133644]
[1752116866425,1.95323538,111280.0,111270.0,0.2133644]
[1752116868032,1.84580169,111280.0,111270.0,0.2133644]
[1752116868225,1.95316534,111280.0,111270.0,0.2133644]
[1752116869135,1.97992125,111280.0,111270.0,0.2133644]
[1752116875250,1.97992125,111280.0,111270.0,0.199318]
[1752116875444,1.97992125,111280.0,111270.0,0.11840258]
[1752116878246,1.61912125,111280.0,111270.0,0.11840258]
[1752116878450,1.97992125,111280.0,111270.0,0.11840258]
[1752116880155,1.95308544,111280.0,111270.0,0.11840258]
[1752116880350,1.84580169,111280.0,111270.0,0.11840258]
[1752116885760,1.97992125,111280.0,111270.0,0.11840258]
[1752116892364,1.93919125,111280.0,111270.0,0.11840258]
[1752116892565,1.96282125,111280.0,111270.0,0.11840258]
[1752116895767,1.96282125,111280.0,111270.0,0.03748724]
[1752116895963,1.93919125,111280.0,111270.0,0.03748724]
[1752116896162,1.96282125,111280.0,111270.0,0.03748724]
[1752116897766,1.35002125,111280.0,111270.0,0.31766942]
[1752116898065,1.96262125,111280.0,111270.0,0.33171722]
[1752116898266,1.63447907,111280.0,111270.0,0.39271722]
[1752116898961,1.59436047,111280.0,111270.0,0.39271722]
[1752116899163,1.89831836,111280.0,111270.0,0.39271722]
[1752116900769,1.347004,111280.0,111270.0,0.37637722]
[1752116900962,1.370634,111280.0,111270.0,0.39271722]
[1752116901270,1.63447618,111280.0,111270.0,0.39271722]
[1752116901969,1.89831836,111280.0,111270.0,0.39271722]
[1752116902168,1.370634,111280.0,111270.0,0.12887504]
[1752116902470,1.89831836,111280.0,111270.0,0.39271722]
[1752116903168,1.370634,111280.0,111270.0,0.3927167]
[1752116903368,1.89831836,111280.0,111270.0,0.3927167]
[1752116903565,1.89831836,111280.0,111270.0,0.12887452]
[1752116903866,1.89831836,111280.0,111270.0,0.3927167]
[1752116904062,1.02187618,111280.0,111270.0,0.3927167]
[1752116904263,1.25000618,111280.0,111270.0,0.3927167]
[1752116904465,0.85204444,111280.0,111270.0,0.30855462]
[1752116904767,0.9595137,111280.0,111270.0,1.3131968]
[1752116904963,0.9746237,111280.0,111270.0,1.3131968]
[1752116905172,0.86715444,111280.0,111270.0,1.3131968]
[1752116905361,0.97461195,111280.0,111270.0,1.3131968]
[1752116905668,0.97461195,111280.0,111270.0,0.9331968]
[1752116905870,0.97461195,111280.0,111270.0,1.3131968]
[1752116906059,0.97461195,111280.0,111270.0,1.3364668]
[1752116906969,1.23845413,111280.0,111270.0,0.69262462]
[1752116907165,0.97461195,111280.0,111270.0,0.9564668]
[1752116907366,1.23845413,111280.0,111270.0,0.9564668]
[1752116909174,1.26511618,111280.0,111270.0,0.9564668]
[1752116909475,1.13099662,111280.0,111270.0,0.9564668]
[1752116909871,1.13099662,111280.0,111270.0,0.9331968]
[1752116910375,1.23828596,111280.0,111270.0,0.9331968]
[1752116911077,0.97444378,111280.0,111270.0,0.9331968]
[1752116911377,1.23828596,111280.0,111270.0,0.9331968]
[1752116912174,1.23828071,111280.0,111270.0,0.9331968]
[1752116912877,1.23828071,111280.0,111270.0,0.93319548]
[1752116915267,1.23828071,111280.0,111270.0,0.6693533]
[1752116915575,1.23828071,111280.0,111270.0,0.93319545]
[1752116917880,1.23804749,111280.0,111270.0,0.93319545]
[1752116919278,1.21116375,111280.0,111270.0,0.93319545]
[1752116921170,1.23538375,111280.0,111270.0,0.93319545]
[1752116921682,1.23538375,111280.0,111270.0,0.66935327]
[1752116921882,1.49922593,111280.0,111270.0,0.93319545]
[1752116922077,1.49922593,111280.0,111270.0,0.66935327]
[1752116922382,1.49922593,111280.0,111270.0,0.93319545]
[1752116923884,1.49922593,111280.0,111270.0,0.66935327]
[1752116924185,1.53052593,111280.0,111270.0,0.93319545]
[1752116924382,1.45001526,111280.0,111270.0,0.93319545]
[1752116924578,1.43490526,111280.0,111270.0,0.66917327]
[1752116924985,1.43490526,111280.0,111270.0,0.93301545]
[1752116925686,1.43490526,111280.0,111270.0,0.66917327]
[1752116925886,1.43482526,111280.0,111270.0,0.93301545]
[1752116926185,1.54221967,111280.0,111270.0,0.93301545]
[1752116926385,1.27837749,111280.0,111270.0,0.93301545]
[1752116927286,1.01453531,111280.0,111270.0,0.93301545]
[1752116927483,1.27837749,111280.0,111270.0,0.93301545]
[1752116927782,1.27837749,111280.0,111270.0,1.24301545]
[1752116927982,1.25415749,111280.0,111270.0,1.22685545]
[1752116928189,1.27837749,111280.0,111270.0,1.22685545]
[1752116929987,1.27837749,111280.0,111270.0,0.91685545]
[1752116930285,1.27837749,111280.0,111270.0,1.27301545]
[1752116930485,1.01453531,111280.0,111270.0,1.27301545]
[1752116930688,1.27837749,111280.0,111270.0,0.66917327]
[1752116930983,1.27837749,111280.0,111270.0,1.31301545]
[1752116933587,1.27837749,111280.0,111270.0,1.26301545]
[1752116934990,1.27837749,111280.0,111270.0,1.27301545]
[1752116936391,1.01453531,111280.0,111270.0,1.27301545]
[1752116936587,0.40205531,111280.0,111270.0,1.27301545]
[1752116936893,1.29390749,111280.0,111270.0,1.27301545]
[1752116938586,1.29390749,111280.0,111270.0,1.24301545]
[1752116938885,1.03006531,111280.0,111270.0,0.97917327]
[1752116939189,1.26968749,111280.0,111270.0,1.24301545]
[1752116939391,1.00584531,111280.0,111270.0,1.24301545]
[1752116939986,1.26968749,111280.0,111270.0,1.27301545]
[1752116940188,1.00584531,111280.0,111270.0,1.27301545]
[1752116940692,1.26968749,111280.0,111270.0,1.27301545]
[1752116941389,1.00584531,111280.0,111270.0,1.27301545]
[1752116941694,1.26968749,111280.0,111270.0,1.27301545]
[1752116943495,1.26968749,111280.0,111270.0,0.93301545]
[1752116943696,1.26968749,111280.0,111270.0,1.28301545]
[1752116943898,1.26968749,111280.0,111270.0,0.92221545]
[1752116944096,1.26968749,111280.0,111270.0,1.28301545]
[1752116944483,1.16229308,111280.0,111270.0,1.28301545]
[1752116944687,0.87974617,111280.0,111270.0,1.28301545]
[1752116944891,1.14358835,111280.0,111270.0,1.28301545]
[1752116945189,0.87974617,111280.0,111270.0,1.26301545]
[1752116945796,1.14358835,111280.0,111270.0,0.99917327]
[1752116945990,1.14358835,111280.0,111270.0,1.26301545]
[1752116946185,0.87974617,111280.0,111270.0,1.26301545]
[1752116946386,0.15767414,111290.0,111270.0,1.86624993]
[1752116946595,0.92694054,111290.0,111280.0,1.06814826]
[1752116946896,0.59309272,111290.0,111280.0,1.87885419]
[1752116947098,0.59309272,111290.0,111280.0,1.615011]
[1752116948299,0.62419272,111290.0,111280.0,1.615011]
[1752116948494,0.62519272,111290.0,111280.0,1.463711]
[1752116948794,0.62519272,111290.0,111280.0,1.23986882]
[1752116948988,0.62519272,111290.0,111280.0,1.503711]
[1752116949998,0.62519272,111290.0,111280.0,1.463711]
[1752116950194,0.62519272,111290.0,111280.0,1.52119824]
[1752116950698,0.62519272,111290.0,111280.0,1.25735606]
[1752116950904,0.62519272,111290.0,111280.0,1.52119824]
[1752116951599,0.60972272,111290.0,111280.0,1.52119824]
[1752116951803,0.62519272,111290.0,111280.0,1.52119824]
[1752116954392,0.36135054,111290.0,111280.0,1.52119824]
[1752116954597,0.62519272,111290.0,111280.0,1.52119824]
[1752116954997,0.62519272,111290.0,111280.0,1.55119824]
[1752116955204,0.64991272,111290.0,111280.0,0.67419606]
[1752116955402,0.64991272,111290.0,111280.0,1.51923824]
[1752116955903,0.64991272,111290.0,111280.0,1.51923777]
[1752116957703,0.64991272,111290.0,111280.0,1.15843777]
[1752116957906,0.64991272,111290.0,111280.0,1.51923777]
[1752116958105,0.64991272,111290.0,111280.0,1.25539559]
[1752116958302,0.64991272,111290.0,111280.0,1.51923777]
[1752116958498,0.38607054,111290.0,111280.0,1.51923777]
[1752116958706,0.64991272,111290.0,111280.0,1.52923777]
[1752116959009,0.64991272,111290.0,111280.0,0.65199559]
[1752116959191,0.9137549,111290.0,111280.0,0.05153169]
[1752116959396,1.38194931,111290.0,111280.0,0.05153169]
[1752116961705,1.34175931,111290.0,111280.0,0.05153169]
[1752116961897,1.36647931,111290.0,111280.0,0.05153169]
[1752116965608,1.36647931,111290.0,111280.0,0.03748724]
[1752116969007,0.1796962,111260.0,111250.0,0.68055068]
[1752116969202,1.11137769,111260.0,111250.0,1.38905803]
[1752116969407,1.11137769,111260.0,111250.0,1.41975803]
[1752116969707,1.09615769,111260.0,111250.0,1.41975803]
[1752116969914,0.83231551,111260.0,111250.0,1.41975803]
[1752116970109,0.83231551,111260.0,111250.0,1.42975803]
[1752116970915,0.84753551,111260.0,111250.0,1.43275803]
[1752116971114,0.83231551,111260.0,111250.0,1.43575803]
[1752116971311,0.84753551,111260.0,111250.0,1.43575803]
[1752116972015,0.84753551,111260.0,111250.0,1.63507603]
[1752116972707,0.83231551,111260.0,111250.0,1.61938603]
[1752116973115,0.84753551,111260.0,111250.0,1.61938603]
[1752116973301,0.23385551,111260.0,111250.0,1.61938603]
[1752116973501,0.23385551,111260.0,111250.0,1.6193861]
[1752116974111,0.23385551,111260.0,111250.0,1.35554392]
[1752116974313,0.23385551,111260.0,111250.0,1.6193861]
[1752116975008,0.23385551,111260.0,111250.0,1.5793861]
[1752116975312,0.23385551,111260.0,111250.0,1.6019761]
[1752116976401,0.23385551,111260.0,111250.0,1.601976]
[1752116977614,0.23385551,111260.0,111250.0,1.33813382]
[1752116977817,0.23385551,111260.0,111250.0,1.601976]
[1752116978518,0.23385551,111260.0,111250.0,1.581976]
[1752116979922,0.23385551,111260.0,111250.0,1.221176]
[1752116980120,0.49769769,111260.0,111250.0,1.611976]
[1752116982423,0.49769769,111260.0,111250.0,1.34813382]
[1752116982616,0.49769769,111260.0,111250.0,1.611976]
[1752116983517,0.49769769,111260.0,111250.0,1.621976]
[1752116985123,0.49769769,111260.0,111250.0,1.57792896]
[1752116985328,0.49769769,111260.0,111250.0,1.59197622]
[1752116985622,0.49769769,111260.0,111250.0,1.32813404]
[1752116985924,0.49769769,111260.0,111250.0,1.59197622]
[1752116986427,0.23385551,111260.0,111250.0,1.32813404]
[1752116986617,0.49769769,111260.0,111250.0,1.59197622]
[1752116987526,0.49769769,111260.0,111250.0,1.56938622]
[1752116988125,0.49769769,111260.0,111250.0,1.56938638]
[1752116988626,0.49769769,111260.0,111250.0,1.54938638]
[1752116990023,0.49769769,111260.0,111250.0,1.55938638]
[1752116992427,0.23385551,111260.0,111250.0,1.55938638]
[1752116992621,0.49769769,111260.0,111250.0,1.55938638]
[1752116993220,0.49769769,111260.0,111250.0,1.55938639]
[1752116994029,0.49769769,111260.0,111250.0,1.55938638]
[1752116994428,0.23385551,111260.0,111250.0,1.55938638]
[1752116994826,0.49769769,111260.0,111250.0,1.55938638]
[1752116995023,0.23385551,111260.0,111250.0,1.55938638]
[1752116995231,0.49769769,111260.0,111250.0,1.55938638]
[1752116995529,0.49769769,111260.0,111250.0,1.60938638]
[1752116995732,0.49769769,111260.0,111250.0,1.3455442]
[1752116996028,0.49769769,111260.0,111250.0,1.60938638]
[1752116996224,0.52909769,111260.0,111250.0,1.60938638]
[1752116996425,0.26525551,111260.0,111250.0,1.60938638]
[1752116996617,0.52909769,111260.0,111250.0,1.60938638]
[1752116997021,0.52909769,111260.0,111250.0,1.3455442]
[1752116997222,0.52909769,111260.0,111250.0,1.60938638]
[1752116998126,0.55949769,111260.0,111250.0,1.60938638]
[1752116998930,0.29565551,111260.0,111250.0,1.60938638]
[1752116999129,0.55949769,111260.0,111250.0,1.58938638]
[1752116999324,0.29565551,111260.0,111250.0,1.58938638]
[1752116999528,0.55949769,111260.0,111250.0,1.58938638]
[1752116999828,0.63992487,111260.0,111250.0,1.58938638]
[1752117000129,0.63992487,111260.0,111250.0,1.61938638]
[1752117000428,0.55949769,111260.0,111250.0,1.61938638]
[1752117000622,0.54427769,111260.0,111250.0,1.61938638]
[1752117000824,0.55957769,111260.0,111250.0,1.61938638]
[1752117001128,0.55957769,111260.0,111250.0,1.58868638]
[1752117002528,0.55957769,111260.0,111250.0,1.3248442]
[1752117002823,0.55957769,111260.0,111250.0,1.58868638]
[1752117003326,1.26464705,111260.0,111250.0,0.59936542]
[1752117003531,1.26464705,111260.0,111250.0,0.38936542]
[1752117005026,1.26464705,111260.0,111250.0,0.27936542]
[1752117006525,1.16891987,111260.0,111250.0,0.27936542]
[1752117006826,1.2729803,111260.0,111250.0,0.27936542]
[1752117007026,1.27297945,111260.0,111250.0,0.27936542]
[1752117008325,1.56355829,111260.0,111250.0,0.27936542]
[1752117008630,0.77203175,111260.0,111250.0,0.21936542]
[1752117008827,1.31501611,111260.0,111250.0,0.21936542]
[1752117009222,1.31506677,111260.0,111250.0,0.21936542]
[1752117009420,1.31506677,111260.0,111250.0,0.21736542]
[1752117012332,1.31506677,111260.0,111250.0,0.21636542]
[1752117014625,0.95426677,111260.0,111250.0,0.21636542]
[1752117014831,1.31506677,111260.0,111250.0,0.21636542]
[1752117015529,1.31506677,111260.0,111250.0,0.202318]
[1752117016532,0.95426677,111260.0,111250.0,0.202318]
[1752117016832,1.31506677,111260.0,111250.0,0.202318]
[1752117018732,0.95426677,111260.0,111250.0,0.202318]
[1752117019032,1.31406806,111260.0,111250.0,0.202318]
[1752117019732,1.92742806,111260.0,111250.0,0.202318]
[1752117019936,1.92742806,111260.0,111250.0,0.46616018]
[1752117020127,1.92742806,111260.0,111250.0,0.202318]
[1752117022227,1.82014116,111260.0,111250.0,0.202318]
[1752117025234,1.92742806,111260.0,111250.0,0.202318]
[1752117025835,1.82014116,111260.0,111250.0,0.202318]
[1752117026429,1.90047814,111260.0,111250.0,0.21636801]
[1752117030539,1.82014116,111260.0,111250.0,0.202318]
[1752117032431,1.92742806,111260.0,111250.0,0.202318]
[1752117038147,1.92742806,111260.0,111250.0,0.216368]
[1752117038537,1.90060792,111260.0,111250.0,0.216368]
[1752117044744,1.92742806,111260.0,111250.0,0.216368]
[1752117045440,1.92742806,111260.0,111250.0,0.202318]
[1752117045645,1.64144367,111260.0,111250.0,0.202318]
[1752117046349,1.74878289,111260.0,111250.0,0.202318]
[1752117046650,1.64144367,111260.0,111250.0,0.202318]
[1752117047244,1.77556323,111260.0,111250.0,0.202318]
[1752117049251,1.77556323,111260.0,111250.0,0.12138885]
[1752117050052,1.77556323,111260.0,111240.0,0.06469783]
[1752117050253,0.7319685,111250.0,111240.0,0.07874803]
[1752117050454,0.89912421,111250.0,111240.0,0.09420803]
[1752117051045,0.82852817,111250.0,111240.0,0.09720803]
[1752117051249,0.85972817,111250.0,111240.0,0.09720803]
[1752117051545,0.85972817,111250.0,111240.0,0.09420803]
[1752117051749,0.85972817,111250.0,111240.0,0.09720803]
[1752117052054,0.59588599,111250.0,111240.0,0.09720803]
[1752117052348,0.85972817,111250.0,111240.0,0.09720803]
[1752117052953,0.85972817,111250.0,111240.0,0.09920803]
[1752117053146,0.85972817,111250.0,111240.0,0.29852603]
[1752117055048,0.55683599,111250.0,111240.0,0.54690821]
[1752117055249,0.85972817,111250.0,111240.0,0.56236821]
[1752117055956,0.86245523,111250.0,111240.0,0.56236821]
[1752117056148,0.90150523,111250.0,111240.0,0.56236821]
[1752117056656,0.90150523,111250.0,111240.0,0.54831801]
[1752117056848,0.63766305,111250.0,111240.0,0.54831801]
[1752117057048,1.49099523,111250.0,111240.0,0.56236821]
[1752117057348,1.22715305,111250.0,111240.0,0.56236821]
[1752117057547,1.49099523,111250.0,111240.0,0.56236821]
[1752117058257,1.13019523,111250.0,111240.0,0.56236821]
[1752117058453,1.49099523,111250.0,111240.0,0.56236821]
[1752117058757,1.49955523,111250.0,111240.0,0.54807801]
[1752117059253,1.4727068,111250.0,111240.0,0.54807801]
[1752117060160,1.4727068,111250.0,111240.0,0.56212821]
[1752117060659,1.4485268,111250.0,111240.0,0.56212821]
[1752117061359,1.4727068,111250.0,111240.0,0.56212821]
[1752117062158,0.49878756,111250.0,111240.0,1.19597039]